[Event "Early-Titled-Tuesday-Blitz-June-18-2024"]
[Site "Chess.com"]
[Date "2024.06.18"]
[Round "7"]
[White "dianamirza"]
[Black "HanSchut"]
[Result "0-1"]
[WhiteElo "1788"]
[BlackElo "2241"]
[TimeControl "180+1"]
[EndTime "9:20:32 PDT"]
[Termination "HanSchut won by resignation"]

1. e4 {[%clk 0:02:47]} 1... c5 {[%clk 0:02:58.5]} 2. Nf3 {[%clk 0:02:40.4]} 2...
d6 {[%clk 0:02:58]} 3. d4 {[%clk 0:02:39.5]} 3... cxd4 {[%clk 0:02:58.9]} 4.
Nxd4 {[%clk 0:02:40.3]} 4... Nf6 {[%clk 0:02:59]} 5. f3 {[%clk 0:02:40.8]} 5...
e5 {[%clk 0:02:57.9]} 6. Nb5 {[%clk 0:02:05.4]} 6... a6 {[%clk 0:02:53.1]} 7.
N5c3 {[%clk 0:01:53.3]} 7... Be6 {[%clk 0:02:45.7]} 8. Bg5 {[%clk 0:01:51.1]}
8... Nbd7 {[%clk 0:02:43.1]} 9. Nd2 {[%clk 0:01:48.4]} 9... Be7 {[%clk
0:02:41.1]} 10. Bd3 {[%clk 0:01:47.1]} 10... b5 {[%clk 0:02:36.5]} 11. O-O
{[%clk 0:01:43.1]} 11... O-O {[%clk 0:02:30.7]} 12. Qe2 {[%clk 0:01:34.8]} 12...
d5 {[%clk 0:02:22.4]} 13. exd5 {[%clk 0:01:07.8]} 13... Nxd5 {[%clk 0:02:12.4]}
14. Nxd5 {[%clk 0:01:05.5]} 14... Bxg5 {[%clk 0:02:07.4]} 15. Ne3 {[%clk
0:01:02.4]} 15... Qb6 {[%clk 0:01:57.9]} 16. Rae1 {[%clk 0:01:00.9]} 16... Nf6
{[%clk 0:01:46.5]} 17. Ne4 {[%clk 0:00:46.1]} 17... Nxe4 {[%clk 0:01:23.4]} 18.
Bxe4 {[%clk 0:00:44.6]} 18... Rad8 {[%clk 0:01:19.4]} 19. Kh1 {[%clk 0:00:23.9]}
19... Bxe3 {[%clk 0:01:05.3]} 20. Qxe3 {[%clk 0:00:21.5]} 20... Qxe3 {[%clk
0:01:06.2]} 21. Rxe3 {[%clk 0:00:22.3]} 21... f6 {[%clk 0:00:58.9]} 22. Re2
{[%clk 0:00:10.3]} 22... Bc4 {[%clk 0:00:54.4]} 23. Bd3 {[%clk 0:00:08.3]} 23...
Bxd3 {[%clk 0:00:54.3]} 24. cxd3 {[%clk 0:00:09.2]} 24... Rxd3 {[%clk
0:00:54.3]} 25. Kg1 {[%clk 0:00:08.8]} 25... Rfd8 {[%clk 0:00:53.9]} 26. Kf2
{[%clk 0:00:08.2]} 26... Rd2 {[%clk 0:00:49.4]} 27. Rc1 {[%clk 0:00:07.9]} 27...
R8d6 {[%clk 0:00:42.3]} 28. Rc8+ {[%clk 0:00:06.7]} 28... Kf7 {[%clk 0:00:42.3]}
29. Rc7+ {[%clk 0:00:07.3]} 29... Kg6 {[%clk 0:00:42.4]} 30. Ra7 {[%clk
0:00:07.4]} 30... Rxe2+ {[%clk 0:00:36.6]} 31. Kxe2 {[%clk 0:00:07]} 31... h5
{[%clk 0:00:34.5]} 32. Ke3 {[%clk 0:00:05.2]} 32... f5 {[%clk 0:00:34.7]} 33. h3
{[%clk 0:00:04.7]} 33... Kf6 {[%clk 0:00:34.5]} 34. g4 {[%clk 0:00:04.9]} 34...
hxg4 {[%clk 0:00:34.1]} 35. hxg4 {[%clk 0:00:05.8]} 35... f4+ {[%clk 0:00:32.3]}
36. Ke2 {[%clk 0:00:05.2]} 36... g5 {[%clk 0:00:30.6]} 37. a3 {[%clk 0:00:04.1]}
37... e4 {[%clk 0:00:28.2]} 38. b4 {[%clk 0:00:03.9]} 38... e3 {[%clk
0:00:26.8]} 39. Rc7 {[%clk 0:00:02.5]} 39... Rd2+ {[%clk 0:00:22.9]} 40. Ke1
{[%clk 0:00:02.7]} 40... Ra2 {[%clk 0:00:21.9]} 41. Rc6+ {[%clk 0:00:03]} 41...
Ke5 {[%clk 0:00:22.2]} 42. Rxa6 {[%clk 0:00:03.9]} 42... Kd4 {[%clk 0:00:20.9]}
43. a4 {[%clk 0:00:04.2]} 43... Rxa4 {[%clk 0:00:18.3]} 44. Rg6 {[%clk
0:00:04.5]} 44... Rxb4 {[%clk 0:00:16.5]} 45. Rxg5 {[%clk 0:00:05.1]} 45... Kd3
{[%clk 0:00:15.9]} 46. Rd5+ {[%clk 0:00:05.3]} 46... Kc2 {[%clk 0:00:15.6]} 47.
Kf1 {[%clk 0:00:04.8]} 47... Rb1+ {[%clk 0:00:15.2]} 48. Kg2 {[%clk 0:00:04.7]}
48... e2 {[%clk 0:00:14.4]} 49. Re5 {[%clk 0:00:05.3]} 49... e1=Q {[%clk
0:00:14.6]} 50. Rxe1 {[%clk 0:00:05.8]} 50... Rxe1 {[%clk 0:00:15.3]} 51. g5
{[%clk 0:00:06.7]} 51... Re5 {[%clk 0:00:14.9]} 52. g6 {[%clk 0:00:06.2]} 52...
Rg5+ {[%clk 0:00:14.9]} 53. Kh3 {[%clk 0:00:07.1]} 53... Rxg6 {[%clk 0:00:15.6]}
54. Kh4 {[%clk 0:00:07.5]} 54... b4 {[%clk 0:00:15.5]} 0-1

[Event "Early-Titled-Tuesday-Blitz-June-18-2024"]
[Site "Chess.com"]
[Date "2024.06.18"]
[Round "7"]
[White "GMBenjaminBok"]
[Black "Goryachkina"]
[Result "1-0"]
[WhiteElo "2987"]
[BlackElo "2675"]
[TimeControl "180+1"]
[EndTime "9:20:34 PDT"]
[Termination "GMBenjaminBok won on time"]

1. d4 {[%clk 0:03:00.9]} 1... Nf6 {[%clk 0:02:59.6]} 2. c4 {[%clk 0:03:00.7]}
2... e6 {[%clk 0:02:59.7]} 3. Nc3 {[%clk 0:03:00.3]} 3... d5 {[%clk 0:02:58.4]}
4. cxd5 {[%clk 0:03:01.2]} 4... exd5 {[%clk 0:02:58.2]} 5. Bg5 {[%clk
0:03:01.2]} 5... Be7 {[%clk 0:02:58]} 6. e3 {[%clk 0:03:01.2]} 6... O-O {[%clk
0:02:57.4]} 7. Bd3 {[%clk 0:03:01.5]} 7... Re8 {[%clk 0:02:55.8]} 8. Nf3 {[%clk
0:02:59.5]} 8... c6 {[%clk 0:02:52.9]} 9. Qc2 {[%clk 0:02:55.5]} 9... Ne4 {[%clk
0:02:40.7]} 10. Bxe4 {[%clk 0:02:45.8]} 10... dxe4 {[%clk 0:02:39.2]} 11. Nxe4
{[%clk 0:02:45.9]} 11... Bxg5 {[%clk 0:02:36.3]} 12. Nexg5 {[%clk 0:02:37.3]}
12... g6 {[%clk 0:02:24]} 13. h4 {[%clk 0:02:16.2]} 13... h6 {[%clk 0:02:13.2]}
14. Nh3 {[%clk 0:02:10.1]} 14... Bxh3 {[%clk 0:01:58.1]} 15. Rxh3 {[%clk
0:02:08.1]} 15... Nd7 {[%clk 0:01:58.2]} 16. O-O-O {[%clk 0:01:54.8]} 16... Qf6
{[%clk 0:01:54.2]} 17. Kb1 {[%clk 0:01:47.6]} 17... Rac8 {[%clk 0:01:50.1]} 18.
h5 {[%clk 0:01:03.2]} 18... g5 {[%clk 0:01:49.6]} 19. Nh2 {[%clk 0:01:02.7]}
19... Qe6 {[%clk 0:01:49.4]} 20. Nf1 {[%clk 0:00:56.5]} 20... f5 {[%clk
0:01:19.2]} 21. Rf3 {[%clk 0:00:51.7]} 21... Rf8 {[%clk 0:01:05.3]} 22. Ng3
{[%clk 0:00:51.5]} 22... f4 {[%clk 0:01:03.2]} 23. exf4 {[%clk 0:00:44.1]} 23...
Rxf4 {[%clk 0:01:02.9]} 24. Rxf4 {[%clk 0:00:42.2]} 24... gxf4 {[%clk
0:01:02.8]} 25. d5 {[%clk 0:00:38]} 25... Qf6 {[%clk 0:00:51.6]} 26. Ne4 {[%clk
0:00:35.7]} 26... Qf5 {[%clk 0:00:50.2]} 27. f3 {[%clk 0:00:31.3]} 27... Nb6
{[%clk 0:00:33.9]} 28. d6 {[%clk 0:00:20.6]} 28... Rd8 {[%clk 0:00:27.6]} 29.
Qb3+ {[%clk 0:00:19.5]} 29... Kg7 {[%clk 0:00:22.4]} 30. a4 {[%clk 0:00:17.3]}
30... Rd7 {[%clk 0:00:19.8]} 31. Qc3+ {[%clk 0:00:16]} 31... Kf7 {[%clk
0:00:19.1]} 32. Qh8 {[%clk 0:00:13.4]} 32... Nd5 {[%clk 0:00:17.1]} 33. Qxh6
{[%clk 0:00:11.6]} 33... Ne3 {[%clk 0:00:15.2]} 34. Rd3 {[%clk 0:00:08.2]} 34...
c5 {[%clk 0:00:08.6]} 35. Ng5+ {[%clk 0:00:04.3]} 35... Kg8 {[%clk 0:00:04.3]}
36. Qe6+ {[%clk 0:00:04.4]} 36... Qxe6 {[%clk 0:00:04.3]} 37. Nxe6 {[%clk
0:00:05.3]} 37... c4 {[%clk 0:00:04]} 38. Rd2 {[%clk 0:00:05.7]} 38... Nf1
{[%clk 0:00:01.1]} 39. Rd4 {[%clk 0:00:04.8]} 39... Ne3 {[%clk 0:00:01.3]} 40.
Nxf4 {[%clk 0:00:03.4]} 40... Nf5 {[%clk 0:00:01.7]} 41. Rd5 {[%clk 0:00:03.8]}
41... Ne3 {[%clk 0:00:01.3]} 42. Rd2 {[%clk 0:00:01.9]} 42... Nf5 {[%clk
0:00:01.4]} 43. g4 {[%clk 0:00:02]} 43... Nxd6 {[%clk 0:00:01]} 44. Nd5 {[%clk
0:00:01.5]} 1-0

[Event "Early-Titled-Tuesday-Blitz-June-18-2024"]
[Site "Chess.com"]
[Date "2024.06.18"]
[Round "7"]
[White "Casper"]
[Black "jk13"]
[Result "0-1"]
[WhiteElo "2484"]
[BlackElo "2701"]
[TimeControl "180+1"]
[EndTime "9:20:35 PDT"]
[Termination "jk13 won on time"]

1. d4 {[%clk 0:03:00.9]} 1... Nf6 {[%clk 0:02:59.9]} 2. Bf4 {[%clk 0:03:00.4]}
2... e6 {[%clk 0:03:00.4]} 3. e3 {[%clk 0:03:00.8]} 3... d5 {[%clk 0:03:01.1]}
4. Nf3 {[%clk 0:03:01]} 4... Bd6 {[%clk 0:03:01.8]} 5. Bg3 {[%clk 0:03:00.5]}
5... O-O {[%clk 0:03:02.4]} 6. Bd3 {[%clk 0:03:00.8]} 6... b6 {[%clk 0:03:03]}
7. Nbd2 {[%clk 0:03:00.3]} 7... Ba6 {[%clk 0:03:03.3]} 8. Bxa6 {[%clk
0:02:58.1]} 8... Nxa6 {[%clk 0:03:04.2]} 9. c4 {[%clk 0:02:58.5]} 9... c5 {[%clk
0:02:58]} 10. cxd5 {[%clk 0:02:56.5]} 10... Bxg3 {[%clk 0:02:52.9]} 11. hxg3
{[%clk 0:02:57.4]} 11... Qxd5 {[%clk 0:02:52.4]} 12. O-O {[%clk 0:02:55]} 12...
Rfd8 {[%clk 0:02:42.1]} 13. Qe2 {[%clk 0:02:50]} 13... Qb7 {[%clk 0:02:34.4]}
14. Rfd1 {[%clk 0:02:47]} 14... h6 {[%clk 0:02:28.3]} 15. Nc4 {[%clk 0:02:44.2]}
15... Ne4 {[%clk 0:02:23.4]} 16. a3 {[%clk 0:02:17.8]} 16... Nc7 {[%clk
0:02:13.6]} 17. dxc5 {[%clk 0:02:12.2]} 17... bxc5 {[%clk 0:02:08.4]} 18. Nfe5
{[%clk 0:02:10.4]} 18... Nd5 {[%clk 0:02:03.5]} 19. Rd3 {[%clk 0:01:30.1]} 19...
Ndf6 {[%clk 0:01:52.1]} 20. Rad1 {[%clk 0:01:29.3]} 20... Rxd3 {[%clk
0:01:51.8]} 21. Qxd3 {[%clk 0:01:27.3]} 21... a5 {[%clk 0:01:41.8]} 22. g4
{[%clk 0:01:19.9]} 22... a4 {[%clk 0:01:33]} 23. f3 {[%clk 0:01:18.7]} 23... Ng5
{[%clk 0:01:33.6]} 24. Qd6 {[%clk 0:01:08.6]} 24... Qb3 {[%clk 0:01:06.9]} 25.
e4 {[%clk 0:01:01.8]} 25... Kh7 {[%clk 0:00:37.5]} 26. Rd2 {[%clk 0:00:59.4]}
26... Rc8 {[%clk 0:00:32.7]} 27. Qe7 {[%clk 0:00:48.3]} 27... Kg8 {[%clk
0:00:31.1]} 28. Nd6 {[%clk 0:00:41.9]} 28... Qe3+ {[%clk 0:00:27.6]} 29. Rf2
{[%clk 0:00:38.4]} 29... Rf8 {[%clk 0:00:26.1]} 30. Ndc4 {[%clk 0:00:32.9]}
30... Qe1+ {[%clk 0:00:23.3]} 31. Rf1 {[%clk 0:00:30.2]} 31... Qg3 {[%clk
0:00:15.3]} 32. Qxc5 {[%clk 0:00:18.7]} 32... Rd8 {[%clk 0:00:14.6]} 33. Qe3
{[%clk 0:00:14]} 33... Nh3+ {[%clk 0:00:10.7]} 34. Kh1 {[%clk 0:00:14.3]} 34...
Ng5 {[%clk 0:00:11.4]} 35. f4 {[%clk 0:00:14.1]} 35... Qh4+ {[%clk 0:00:10.5]}
36. Kg1 {[%clk 0:00:13.7]} 36... Ngxe4 {[%clk 0:00:10.4]} 37. Qa7 {[%clk
0:00:12.3]} 37... Rf8 {[%clk 0:00:09.9]} 38. Rd1 {[%clk 0:00:12.5]} 38... Nxg4
{[%clk 0:00:08.6]} 39. Nxg4 {[%clk 0:00:10.7]} 39... Qxg4 {[%clk 0:00:08.8]} 40.
Ne3 {[%clk 0:00:10.9]} 40... Qg3 {[%clk 0:00:08.7]} 41. Qd4 {[%clk 0:00:06.6]}
41... Qf2+ {[%clk 0:00:08]} 42. Kh1 {[%clk 0:00:07.1]} 42... Qxf4 {[%clk
0:00:08]} 43. Kg1 {[%clk 0:00:03]} 43... Qf2+ {[%clk 0:00:07]} 44. Kh1 {[%clk
0:00:03.6]} 44... Qh4+ {[%clk 0:00:07.8]} 45. Kg1 {[%clk 0:00:03.8]} 45... Qf4
{[%clk 0:00:06.9]} 46. Rf1 {[%clk 0:00:03]} 46... Qh4 {[%clk 0:00:07.2]} 47. Nc4
{[%clk 0:00:01.6]} 47... f5 {[%clk 0:00:06.3]} 48. Ne5 {[%clk 0:00:01.6]} 48...
Qf6 {[%clk 0:00:06.2]} 0-1

[Event "Early-Titled-Tuesday-Blitz-June-18-2024"]
[Site "Chess.com"]
[Date "2024.06.18"]
[Round "7"]
[White "PeshkaCh"]
[Black "Yan_Dyomin2010"]
[Result "0-1"]
[WhiteElo "2845"]
[BlackElo "2667"]
[TimeControl "180+1"]
[EndTime "9:20:36 PDT"]
[Termination "Yan_Dyomin2010 won by checkmate"]

1. Nf3 {[%clk 0:03:00.9]} 1... Nf6 {[%clk 0:02:59.4]} 2. d4 {[%clk 0:02:51.1]}
2... g6 {[%clk 0:02:57.5]} 3. Nbd2 {[%clk 0:02:44.1]} 3... d5 {[%clk 0:02:56.3]}
4. c4 {[%clk 0:02:36.9]} 4... Bg7 {[%clk 0:02:55.3]} 5. g3 {[%clk 0:02:36.6]}
5... O-O {[%clk 0:02:55]} 6. Bg2 {[%clk 0:02:36.5]} 6... c5 {[%clk 0:02:55.4]}
7. O-O {[%clk 0:02:35.1]} 7... cxd4 {[%clk 0:02:53.9]} 8. Nxd4 {[%clk
0:02:35.2]} 8... Nc6 {[%clk 0:02:54.5]} 9. N2f3 {[%clk 0:02:20.6]} 9... Nxd4
{[%clk 0:02:34.8]} 10. Qxd4 {[%clk 0:02:19.9]} 10... dxc4 {[%clk 0:02:33.5]} 11.
Qxc4 {[%clk 0:02:14.4]} 11... Be6 {[%clk 0:02:33.4]} 12. Qh4 {[%clk 0:02:14.1]}
12... Qa5 {[%clk 0:02:30.3]} 13. Bh6 {[%clk 0:02:12.6]} 13... Bxh6 {[%clk
0:02:27.5]} 14. Qxh6 {[%clk 0:02:13.5]} 14... Bd5 {[%clk 0:02:24]} 15. Rfd1
{[%clk 0:02:10.7]} 15... Bxf3 {[%clk 0:02:23.1]} 16. Bxf3 {[%clk 0:02:11.6]}
16... Rad8 {[%clk 0:02:20.6]} 17. Qe3 {[%clk 0:02:08.7]} 17... Qb4 {[%clk
0:02:02.8]} 18. b3 {[%clk 0:01:48.9]} 18... b6 {[%clk 0:01:49.2]} 19. Rac1
{[%clk 0:01:33.4]} 19... Rxd1+ {[%clk 0:01:47]} 20. Rxd1 {[%clk 0:01:34.3]}
20... Rc8 {[%clk 0:01:44.3]} 21. Kg2 {[%clk 0:01:33.7]} 21... Kg7 {[%clk
0:01:42.3]} 22. h4 {[%clk 0:01:31.5]} 22... h5 {[%clk 0:01:41.7]} 23. Rc1 {[%clk
0:01:27]} 23... Rxc1 {[%clk 0:01:40.7]} 24. Qxc1 {[%clk 0:01:27.9]} 24... Qd6
{[%clk 0:01:40.6]} 25. Qc8 {[%clk 0:01:24.9]} 25... a5 {[%clk 0:01:40.3]} 26.
Qb7 {[%clk 0:01:23.4]} 26... Nd7 {[%clk 0:01:38.6]} 27. Bc6 {[%clk 0:01:05.7]}
27... Ne5 {[%clk 0:01:37.6]} 28. Bd5 {[%clk 0:01:05.7]} 28... e6 {[%clk
0:01:36.9]} 29. Be4 {[%clk 0:01:03.6]} 29... Qd4 {[%clk 0:01:35.4]} 30. e3
{[%clk 0:00:56.2]} 30... Qc5 {[%clk 0:01:29.8]} 31. Qa7 {[%clk 0:00:35.3]} 31...
Qb4 {[%clk 0:01:21.2]} 32. Qb7 {[%clk 0:00:32.3]} 32... Ng4 {[%clk 0:01:10.9]}
33. Bf3 {[%clk 0:00:29]} 33... Nf6 {[%clk 0:01:11]} 34. Qa7 {[%clk 0:00:23.5]}
34... Qc5 {[%clk 0:01:05.9]} 35. Qb7 {[%clk 0:00:22.4]} 35... b5 {[%clk
0:01:05]} 36. Be2 {[%clk 0:00:18.9]} 36... b4 {[%clk 0:01:00.4]} 37. Bc4 {[%clk
0:00:19.4]} 37... Qf5 {[%clk 0:00:58.5]} 38. Qf3 {[%clk 0:00:09.5]} 38... Qc2
{[%clk 0:00:57.4]} 39. Kg1 {[%clk 0:00:05.7]} 39... Qxa2 {[%clk 0:00:51.4]} 40.
Bxe6 {[%clk 0:00:03]} 40... Qb1+ {[%clk 0:00:48.4]} 41. Kg2 {[%clk 0:00:02.9]}
41... fxe6 {[%clk 0:00:48.9]} 42. Qb7+ {[%clk 0:00:03.2]} 42... Kh6 {[%clk
0:00:49.5]} 43. Qf7 {[%clk 0:00:02.3]} 43... Qe4+ {[%clk 0:00:48.7]} 44. Kg1
{[%clk 0:00:02.4]} 44... Qf5 {[%clk 0:00:34.9]} 45. Qf8+ {[%clk 0:00:02.6]}
45... Kh7 {[%clk 0:00:34.5]} 46. Qf7+ {[%clk 0:00:02.5]} 46... Kh8 {[%clk
0:00:35.1]} 47. Qf8+ {[%clk 0:00:03]} 47... Ng8 {[%clk 0:00:35.7]} 48. Qd8
{[%clk 0:00:02.8]} 48... Qd5 {[%clk 0:00:33.6]} 49. Qf8 {[%clk 0:00:02.3]} 49...
Qxb3 {[%clk 0:00:32.3]} 50. Qd6 {[%clk 0:00:02.3]} 50... Qb1+ {[%clk 0:00:32.3]}
51. Kh2 {[%clk 0:00:02.4]} 51... Qf5 {[%clk 0:00:33.2]} 52. f4 {[%clk
0:00:01.8]} 52... b3 {[%clk 0:00:31.2]} 53. e4 {[%clk 0:00:01.6]} 53... Qxe4
{[%clk 0:00:29.9]} 54. g4 {[%clk 0:00:01.7]} 54... b2 {[%clk 0:00:29.5]} 55. f5
{[%clk 0:00:02]} 55... b1=Q {[%clk 0:00:29.6]} 56. Qg3 {[%clk 0:00:01.6]} 56...
Qbh1# {[%clk 0:00:29.7]} 0-1

[Event "Early-Titled-Tuesday-Blitz-June-18-2024"]
[Site "Chess.com"]
[Date "2024.06.18"]
[Round "7"]
[White "Caroexpert"]
[Black "Dexter_Dyke"]
[Result "1-0"]
[WhiteElo "2639"]
[BlackElo "2492"]
[TimeControl "180+1"]
[EndTime "9:20:37 PDT"]
[Termination "Caroexpert won by checkmate"]

1. d4 {[%clk 0:03:00.9]} 1... Nf6 {[%clk 0:02:52.5]} 2. c4 {[%clk 0:03:01.3]}
2... c5 {[%clk 0:02:52.5]} 3. d5 {[%clk 0:03:01.2]} 3... e5 {[%clk 0:02:49.2]}
4. Nc3 {[%clk 0:03:01.6]} 4... d6 {[%clk 0:02:40.1]} 5. e4 {[%clk 0:03:00.8]}
5... Be7 {[%clk 0:02:40.6]} 6. Bd3 {[%clk 0:03:01]} 6... Nbd7 {[%clk 0:02:41.2]}
7. Nge2 {[%clk 0:02:59.7]} 7... h5 {[%clk 0:02:41.5]} 8. h3 {[%clk 0:02:56.5]}
8... h4 {[%clk 0:02:41]} 9. Be3 {[%clk 0:02:55.4]} 9... Nh5 {[%clk 0:02:38]} 10.
g4 {[%clk 0:02:54.4]} 10... hxg3 {[%clk 0:02:30]} 11. fxg3 {[%clk 0:02:54.5]}
11... Bg5 {[%clk 0:02:30.2]} 12. Qd2 {[%clk 0:02:53.7]} 12... Bxe3 {[%clk
0:02:30.3]} 13. Qxe3 {[%clk 0:02:54.6]} 13... a6 {[%clk 0:02:22.5]} 14. O-O-O
{[%clk 0:02:54.2]} 14... Nhf6 {[%clk 0:02:18.8]} 15. g4 {[%clk 0:02:50.2]} 15...
Nf8 {[%clk 0:02:18.9]} 16. Rdf1 {[%clk 0:02:45.3]} 16... Bd7 {[%clk 0:02:17.1]}
17. Ng3 {[%clk 0:02:44.8]} 17... Ng6 {[%clk 0:02:10]} 18. Nce2 {[%clk
0:02:43.7]} 18... Qa5 {[%clk 0:02:04.5]} 19. Kb1 {[%clk 0:02:42]} 19... b5
{[%clk 0:02:04.7]} 20. Nf5 {[%clk 0:02:42.1]} 20... Bxf5 {[%clk 0:01:57.9]} 21.
exf5 {[%clk 0:02:36.8]} 21... Ne7 {[%clk 0:01:36.9]} 22. g5 {[%clk 0:02:36.7]}
22... Nd7 {[%clk 0:01:35.6]} 23. Nc3 {[%clk 0:02:36.6]} 23... bxc4 {[%clk
0:01:30.2]} 24. Bxc4 {[%clk 0:02:36.7]} 24... Nb6 {[%clk 0:01:30.4]} 25. Qd3
{[%clk 0:02:31.3]} 25... Rb8 {[%clk 0:01:26.3]} 26. Ne4 {[%clk 0:02:30.3]} 26...
O-O {[%clk 0:01:20.2]} 27. f6 {[%clk 0:02:28.3]} 27... Ng6 {[%clk 0:01:20]} 28.
fxg7 {[%clk 0:02:26.4]} 28... Kxg7 {[%clk 0:01:20.2]} 29. Nxd6 {[%clk
0:02:24.4]} 29... Nxc4 {[%clk 0:01:17.2]} 30. Nxc4 {[%clk 0:01:53.3]} 30... Qb4
{[%clk 0:01:16.7]} 31. Rh2 {[%clk 0:01:39.2]} 31... e4 {[%clk 0:01:08.2]} 32.
Qxe4 {[%clk 0:01:37.8]} 32... Rfe8 {[%clk 0:00:59.9]} 33. Qc2 {[%clk 0:01:28.6]}
33... Re1+ {[%clk 0:00:59.6]} 34. Rxe1 {[%clk 0:01:28.3]} 34... Qxe1+ {[%clk
0:01:00.5]} 35. Qc1 {[%clk 0:01:28.8]} 35... Qe4+ {[%clk 0:00:57]} 36. Ka1
{[%clk 0:01:27.2]} 36... Qxd5 {[%clk 0:00:47.1]} 37. h4 {[%clk 0:01:18.5]} 37...
Rb4 {[%clk 0:00:44.6]} 38. b3 {[%clk 0:01:09.8]} 38... Ne5 {[%clk 0:00:44.5]}
39. Qc3 {[%clk 0:00:51.2]} 39... f6 {[%clk 0:00:21.2]} 40. gxf6+ {[%clk
0:00:50.4]} 40... Kxf6 {[%clk 0:00:21.9]} 41. Rf2+ {[%clk 0:00:48.9]} 41... Ke6
{[%clk 0:00:21.7]} 42. Qh3+ {[%clk 0:00:30.8]} 42... Ke7 {[%clk 0:00:16.4]} 43.
Qe3 {[%clk 0:00:29.6]} 43... Ke6 {[%clk 0:00:13.4]} 44. Qh6+ {[%clk 0:00:22.2]}
44... Kd7 {[%clk 0:00:08.9]} 45. Qg7+ {[%clk 0:00:22.1]} 45... Kc6 {[%clk
0:00:01.6]} 46. Rf6+ {[%clk 0:00:21.9]} 46... Kb5 {[%clk 0:00:01.9]} 47. Rb6#
{[%clk 0:00:21.8]} 1-0

[Event "Early-Titled-Tuesday-Blitz-June-18-2024"]
[Site "Chess.com"]
[Date "2024.06.18"]
[Round "7"]
[White "MasterKroket"]
[Black "Juicy_Fork"]
[Result "0-1"]
[WhiteElo "2526"]
[BlackElo "2430"]
[TimeControl "180+1"]
[EndTime "9:20:38 PDT"]
[Termination "Juicy_Fork won by resignation"]

1. e4 {[%clk 0:03:00.9]} 1... e5 {[%clk 0:02:55.9]} 2. Nf3 {[%clk 0:03:00]} 2...
Nc6 {[%clk 0:02:55.4]} 3. Bb5 {[%clk 0:03:00.2]} 3... a6 {[%clk 0:02:53.7]} 4.
Ba4 {[%clk 0:03:00.8]} 4... d6 {[%clk 0:02:53.7]} 5. O-O {[%clk 0:03:00.2]} 5...
Nf6 {[%clk 0:02:52.7]} 6. c3 {[%clk 0:02:58.5]} 6... Bd7 {[%clk 0:02:52.7]} 7.
Re1 {[%clk 0:02:56.9]} 7... g6 {[%clk 0:02:52.6]} 8. d4 {[%clk 0:02:55.4]} 8...
Bg7 {[%clk 0:02:52.5]} 9. Nbd2 {[%clk 0:02:48]} 9... O-O {[%clk 0:02:51.5]} 10.
Nf1 {[%clk 0:02:48.2]} 10... b5 {[%clk 0:02:45.6]} 11. Bc2 {[%clk 0:02:46.8]}
11... exd4 {[%clk 0:02:44.3]} 12. cxd4 {[%clk 0:02:46.6]} 12... Bg4 {[%clk
0:02:38.5]} 13. Be3 {[%clk 0:02:45.7]} 13... Re8 {[%clk 0:02:37.4]} 14. N1d2
{[%clk 0:02:42.8]} 14... Qe7 {[%clk 0:02:30]} 15. h3 {[%clk 0:02:42.2]} 15...
Bxf3 {[%clk 0:02:25.6]} 16. Qxf3 {[%clk 0:02:42.1]} 16... Nb4 {[%clk 0:02:23.9]}
17. Bb1 {[%clk 0:02:40.3]} 17... c5 {[%clk 0:02:22.1]} 18. a3 {[%clk 0:02:03.5]}
18... Nc6 {[%clk 0:01:56.7]} 19. d5 {[%clk 0:02:02.5]} 19... Nd4 {[%clk
0:01:48]} 20. Qd1 {[%clk 0:01:55.8]} 20... Nd7 {[%clk 0:01:39.1]} 21. f4 {[%clk
0:01:43.4]} 21... c4 {[%clk 0:01:26.1]} 22. Ra2 {[%clk 0:01:36.1]} 22... Nc5
{[%clk 0:01:23.1]} 23. Nf3 {[%clk 0:01:22.4]} 23... Nxf3+ {[%clk 0:01:02.1]} 24.
gxf3 {[%clk 0:01:23.3]} 24... Bh6 {[%clk 0:00:55.1]} 25. b4 {[%clk 0:01:08.4]}
25... cxb3 {[%clk 0:00:48.7]} 26. Rg2 {[%clk 0:01:08.3]} 26... Qh4 {[%clk
0:00:45.5]} 27. Rg4 {[%clk 0:00:56.9]} 27... Qxh3 {[%clk 0:00:24.6]} 28. Kf2
{[%clk 0:00:47.3]} 28... Qh2+ {[%clk 0:00:23.8]} 29. Rg2 {[%clk 0:00:46.7]}
29... Qh4+ {[%clk 0:00:23.6]} 30. Ke2 {[%clk 0:00:42.8]} 30... Bxf4 {[%clk
0:00:21.8]} 31. Rh1 {[%clk 0:00:42.8]} 31... Qf6 {[%clk 0:00:21.1]} 32. Bd4
{[%clk 0:00:40]} 32... Be5 {[%clk 0:00:19.1]} 33. Be3 {[%clk 0:00:39.7]} 33...
Rac8 {[%clk 0:00:17.2]} 34. Bg5 {[%clk 0:00:35.9]} 34... Qg7 {[%clk 0:00:15.6]}
35. Bh6 {[%clk 0:00:35.7]} 35... Qh8 {[%clk 0:00:15.5]} 36. Qd2 {[%clk
0:00:34.2]} 36... Na4 {[%clk 0:00:13.1]} 37. Qg5 {[%clk 0:00:30.8]} 37... Bf6
{[%clk 0:00:10.8]} 38. Qg4 {[%clk 0:00:30.1]} 38... Nc3+ {[%clk 0:00:10.8]} 39.
Kf2 {[%clk 0:00:27.8]} 39... Bd4+ {[%clk 0:00:07.5]} 40. Kg3 {[%clk 0:00:27.7]}
40... Qe5+ {[%clk 0:00:07.8]} 41. Kh3 {[%clk 0:00:27.9]} 41... Nxb1 {[%clk
0:00:06.4]} 42. Rxb1 {[%clk 0:00:28.2]} 42... Rc3 {[%clk 0:00:06.4]} 43. Rf1
{[%clk 0:00:20.1]} 43... Qxe4 {[%clk 0:00:05]} 44. Kh2 {[%clk 0:00:19.5]} 44...
Qxg4 {[%clk 0:00:04.7]} 45. Rxg4 {[%clk 0:00:19.1]} 45... Be5+ {[%clk 0:00:04]}
46. f4 {[%clk 0:00:18.3]} 46... Bg7 {[%clk 0:00:03.1]} 47. Bg5 {[%clk
0:00:17.4]} 47... Re2+ {[%clk 0:00:03.3]} 48. Rg2 {[%clk 0:00:14.4]} 48... Rxg2+
{[%clk 0:00:02.7]} 49. Kxg2 {[%clk 0:00:15.3]} 49... b2 {[%clk 0:00:03.6]} 50.
Rb1 {[%clk 0:00:15.9]} 50... Rc1 {[%clk 0:00:03.9]} 0-1